[Event "European Women's Chess Championship (1-48)"]
[Site "Batumi, Georgia"]
[Date "2026.05.25"]
[Round "1.46"]
[White "Golsta, Madara"]
[Black "Zimina, Olga"]
[Result "1/2-1/2"]
[TimeControl "90min/ 40moves+ 30min+ 30-sec increment from move 1"]
[WhiteTitle "-"]
[BlackTitle "-"]
[WhiteFideId "11607386"]
[BlackFideId "4132190"]
[WhiteElo "2023"]
[BlackElo "2290"]

1. e4 {[%clk 01:30:57]} {[%emt 00:00:02]} c6 {[%clk 01:30:54]} {[%emt
00:00:07]} 2. d4 {[%clk 01:31:19]} {[%emt 00:00:07]} d5 {[%clk 01:31:18]}
{[%emt 00:00:05]} 3. exd5 {[%clk 01:31:37]} {[%emt 00:00:13]} cxd5 {[%clk
01:31:42]} {[%emt 00:00:06]} 4. c4 {[%clk 01:32:01]} {[%emt 00:00:06]} Nf6
{[%clk 01:32:07]} {[%emt 00:00:05]} 5. Nc3 {[%clk 01:32:22]} {[%emt 00:00:10]}
g6 {[%clk 01:32:30]} {[%emt 00:00:06]} 6. Qb3 {[%clk 01:32:40]} {[%emt
00:00:12]} Bg7 {[%clk 01:32:53]} {[%emt 00:00:07]} 7. cxd5 {[%clk 01:32:54]}
{[%emt 00:00:16]} O-O {[%clk 01:33:17]} {[%emt 00:00:06]} 8. Be2 {[%clk
01:33:00]} {[%emt 00:00:24]} Na6 {[%clk 01:33:38]} {[%emt 00:00:09]} 9. Bf3
{[%clk 01:32:57]} {[%emt 00:00:32]} Qb6 {[%clk 01:33:59]} {[%emt 00:00:10]} 10.
Qxb6 {[%clk 01:32:48]} {[%emt 00:00:40]} axb6 {[%clk 01:34:23]} {[%emt
00:00:06]} 11. Nge2 {[%clk 01:33:03]} {[%emt 00:00:16]} Nb4 {[%clk 01:34:48]}
{[%emt 00:00:04]} 12. O-O {[%clk 01:33:20]} {[%emt 00:00:14]} Rd8 {[%clk
01:35:09]} {[%emt 00:00:08]} 13. d6 {[%clk 01:33:12]} {[%emt 00:00:39]} Rxd6
{[%clk 01:35:29]} {[%emt 00:00:09]} 14. Bf4 {[%clk 01:32:34]} {[%emt 00:01:08]}
Rd7 {[%clk 01:35:54]} {[%emt 00:00:05]} 15. Be5 {[%clk 01:32:38]} {[%emt
00:00:26]} Nfd5 {[%clk 01:35:49]} {[%emt 00:00:34]} 16. Nxd5 {[%clk 01:20:19]}
{[%emt 00:12:50]} Nxd5 {[%clk 01:36:04]} {[%emt 00:00:16]} 17. Bxg7 {[%clk
01:17:50]} {[%emt 00:02:58]} Kxg7 {[%clk 01:34:25]} {[%emt 00:02:08]} 18. Rac1
{[%clk 01:16:49]} {[%emt 00:01:31]} Kf8 {[%clk 01:11:05]} {[%emt 00:23:50]} 19.
Rc4 {[%clk 01:07:38]} {[%emt 00:09:42]} Rd6 {[%clk 01:01:52]} {[%emt 00:09:44]}
20. Bxd5 {[%clk 00:53:13]} {[%emt 00:14:54]} Rxd5 {[%clk 01:01:58]} {[%emt
00:00:23]} 21. Rfc1 {[%clk 00:53:36]} {[%emt 00:00:08]} Be6 {[%clk 00:45:00]}
{[%emt 00:17:28]} 22. Nf4 {[%clk 00:43:49]} {[%emt 00:10:16]} Rb5 {[%clk
00:43:38]} {[%emt 00:01:53]} 23. Nxe6+ {[%clk 00:43:04]} {[%emt 00:01:15]} fxe6
{[%clk 00:44:07]} {[%emt 00:00:01]} 24. Rc8+ {[%clk 00:43:18]} {[%emt
00:00:16]} Rxc8 {[%clk 00:44:35]} {[%emt 00:00:02]} 25. Rxc8+ {[%clk 00:43:44]}
{[%emt 00:00:05]} Kf7 {[%clk 00:45:01]} {[%emt 00:00:03]} 26. b3 {[%clk
00:43:20]} {[%emt 00:00:54]} Rd5 {[%clk 00:44:08]} {[%emt 00:01:23]} 27. g3
{[%clk 00:42:52]} {[%emt 00:00:59]} Rxd4 {[%clk 00:35:40]} {[%emt 00:08:57]} 28.
Rc7 {[%clk 00:42:17]} {[%emt 00:01:06]} b5 {[%clk 00:31:14]} {[%emt 00:04:56]}
29. Rxb7 {[%clk 00:40:41]} {[%emt 00:02:06]} b4 {[%clk 00:18:02]} {[%emt
00:13:42]} 30. Kg2 {[%clk 00:39:50]} {[%emt 00:01:20]} e5 {[%clk 00:14:07]}
{[%emt 00:04:25]} 31. Kf3 {[%clk 00:38:40]} {[%emt 00:01:40]} Rd2 {[%clk
00:13:23]} {[%emt 00:01:14]} 32. Rxb4 {[%clk 00:38:25]} {[%emt 00:00:45]} Rxa2
{[%clk 00:13:50]} {[%emt 00:00:04]} 33. Rb6 {[%clk 00:33:44]} {[%emt 00:05:10]}
h5 {[%clk 00:13:49]} {[%emt 00:00:31]} 34. h4 {[%clk 00:26:54]} {[%emt
00:07:20]} e6 {[%clk 00:13:00]} {[%emt 00:01:19]} 35. Rb7+ {[%clk 00:23:55]}
{[%emt 00:03:30]} Kf6 {[%clk 00:13:18]} {[%emt 00:00:11]} 36. b4 {[%clk
00:19:24]} {[%emt 00:05:01]} Rb2 {[%clk 00:12:04]} {[%emt 00:01:44]} 37. b5
{[%clk 00:18:23]} {[%emt 00:01:32]} e4+ {[%clk 00:10:26]} {[%emt 00:02:11]} 38.
Kxe4 {[%clk 00:14:16]} {[%emt 00:04:33]} Rxf2 {[%clk 00:10:50]} {[%emt
00:00:06]} 39. Rb8 {[%clk 00:14:11]} {[%emt 00:00:36]} Rb2 {[%clk 00:10:00]}
{[%emt 00:01:19]} 40. b6 {[%clk 00:13:30]} {[%emt 00:01:12]} Rb4+ {[%clk
00:04:40]} {[%emt 00:05:49]} 41. Kd3 {[%clk 00:06:20]} {[%emt 00:07:40]} Kf5
{[%clk 00:04:18]} {[%emt 00:00:52]} 42. Rf8+ {[%clk 00:06:40]} {[%emt
00:00:11]} Ke5 {[%clk 00:04:43]} {[%emt 00:00:05]} 43. Rg8 {[%clk 00:06:01]}
{[%emt 00:01:09]} Kf5 {[%clk 00:04:15]} {[%emt 00:00:58]} 44. Rf8+ {[%clk
00:06:24]} {[%emt 00:00:07]} Ke5 {[%clk 00:04:40]} {[%emt 00:00:05]} 45. Rg8
{[%clk 00:06:27]} {[%emt 00:00:28]} Kf5 {[%clk 00:04:39]} {[%emt 00:00:30]} 46.
Rf8+ {[%clk 00:06:32]} {[%emt 00:00:26]} Ke5 {[%emt 00:00:08]} 1/2-1/2

[Event "European Women's Chess Championship (1-48)"]
[Site "Batumi, Georgia"]
[Date "2026.05.25"]
[Round "1.47"]
[White "Unuk, Laura"]
[Black "Hariharan, Shambavi"]
[Result "1/2-1/2"]
[TimeControl "90min/ 40moves+ 30min+ 30-sec increment from move 1"]
[WhiteTitle "-"]
[BlackTitle "-"]
[WhiteFideId "14609215"]
[BlackFideId "488160"]
[WhiteElo "2289"]
[BlackElo "2008"]

1. d4 {[%clk 01:30:47]} {[%emt 00:00:12]} Nf6 {[%clk 01:30:49]} {[%emt
00:00:11]} 2. c4 {[%clk 01:31:04]} {[%emt 00:00:13]} e6 {[%clk 01:30:53]}
{[%emt 00:00:26]} 3. Nf3 {[%clk 01:30:57]} {[%emt 00:00:37]} b6 {[%clk
01:30:50]} {[%emt 00:00:34]} 4. g3 {[%clk 01:31:07]} {[%emt 00:00:19]} Bb7
{[%clk 01:30:56]} {[%emt 00:00:24]} 5. Bg2 {[%clk 01:31:20]} {[%emt 00:00:16]}
Be7 {[%clk 01:31:17]} {[%emt 00:00:10]} 6. O-O {[%clk 01:30:21]} {[%emt
00:01:29]} O-O {[%clk 01:31:21]} {[%emt 00:00:27]} 7. d5 {[%clk 01:28:59]}
{[%emt 00:01:52]} exd5 {[%clk 01:22:49]} {[%emt 00:09:02]} 8. Nh4 {[%clk
01:29:03]} {[%emt 00:00:25]} Ne4 {[%clk 01:22:10]} {[%emt 00:01:10]} 9. cxd5
{[%clk 01:29:08]} {[%emt 00:00:24]} Bxh4 {[%clk 01:22:07]} {[%emt 00:00:33]} 10.
Bxe4 {[%clk 01:28:45]} {[%emt 00:00:53]} Bf6 {[%clk 01:22:30]} {[%emt
00:00:07]} 11. Qc2 {[%clk 01:28:25]} {[%emt 00:00:50]} h6 {[%clk 01:19:19]}
{[%emt 00:03:41]} 12. Nc3 {[%clk 01:13:44]} {[%emt 00:15:11]} d6 {[%clk
01:01:12]} {[%emt 00:18:37]} 13. Bg2 {[%clk 01:10:39]} {[%emt 00:03:35]} Qd7
{[%clk 00:56:24]} {[%emt 00:05:19]} 14. Be3 {[%clk 01:09:23]} {[%emt 00:01:45]}
Na6 {[%clk 00:45:44]} {[%emt 00:11:10]} 15. a3 {[%clk 01:08:16]} {[%emt
00:01:37]} c6 {[%clk 00:38:18]} {[%emt 00:07:57]} 16. Ne4 {[%clk 00:49:44]}
{[%emt 00:19:01]} Be7 {[%clk 00:31:49]} {[%emt 00:06:59]} 17. Qa4 {[%clk
00:33:07]} {[%emt 00:17:07]} Nb8 {[%clk 00:26:51]} {[%emt 00:05:29]} 18. Bf4
{[%clk 00:32:40]} {[%emt 00:00:57]} b5 {[%clk 00:18:17]} {[%emt 00:09:04]} 19.
dxc6 {[%clk 00:31:52]} {[%emt 00:01:17]} Bxc6 {[%clk 00:17:21]} {[%emt
00:01:27]} 20. Qb3 {[%clk 00:26:05]} {[%emt 00:06:17]} Qb7 {[%clk 00:14:37]}
{[%emt 00:03:14]} 21. Qd3 {[%clk 00:23:52]} {[%emt 00:02:43]} Rd8 {[%clk
00:07:57]} {[%emt 00:07:10]} 22. Rac1 {[%clk 00:23:47]} {[%emt 00:00:34]} d5
{[%clk 00:03:30]} {[%emt 00:04:58]} 23. Nc5 {[%clk 00:21:20]} {[%emt 00:02:56]}
Bxc5 {[%clk 00:02:48]} {[%emt 00:01:13]} 24. Rxc5 {[%clk 00:21:45]} {[%emt
00:00:05]} Na6 {[%clk 00:02:21]} {[%emt 00:00:57]} 25. Rc2 {[%clk 00:18:31]}
{[%emt 00:03:43]} b4 {[%clk 00:02:32]} {[%emt 00:00:19]} 26. Rfc1 {[%clk
00:18:02]} {[%emt 00:00:59]} Bb5 {[%clk 00:01:34]} {[%emt 00:01:29]} 27. Qf5
{[%clk 00:15:11]} {[%emt 00:03:21]} bxa3 {[%clk 00:01:14]} {[%emt 00:00:50]} 28.
bxa3 {[%clk 00:14:29]} {[%emt 00:01:12]} Qd7 {[%clk 00:01:15]} {[%emt
00:00:29]} 29. Qh5 {[%clk 00:13:25]} {[%emt 00:01:33]} Qe6 {[%clk 00:00:58]}
{[%emt 00:00:47]} 30. Rd2 {[%clk 00:11:17]} {[%emt 00:02:39]} Bc4 {[%clk
00:00:50]} {[%emt 00:00:38]} 31. Bh3 {[%clk 00:09:58]} {[%emt 00:01:49]} Qe7
{[%clk 00:00:43]} {[%emt 00:00:37]} 32. Be3 {[%clk 00:05:16]} {[%emt 00:05:12]}
Nc5 {[%clk 00:00:50]} {[%emt 00:00:23]} 33. Bxc5 {[%clk 00:00:37]} {[%emt
00:05:08]} Qxc5 {[%clk 00:01:16]} {[%emt 00:00:04]} 34. Qf3 {[%clk 00:00:37]}
{[%emt 00:00:30]} Rab8 {[%clk 00:01:18]} {[%emt 00:00:28]} 35. a4 {[%clk
00:00:38]} {[%emt 00:00:30]} Qb4 {[%clk 00:01:18]} {[%emt 00:00:29]} 36. Qc3
{[%clk 00:00:39]} {[%emt 00:00:29]} Qxa4 {[%clk 00:01:27]} {[%emt 00:00:21]} 37.
Ra1 {[%clk 00:00:36]} {[%emt 00:00:33]} Qb5 {[%clk 00:00:56]} {[%emt 00:01:01]}
38. Bg4 {[%clk 00:00:35]} {[%emt 00:00:32]} Ra8 {[%clk 00:00:49]} {[%emt
00:00:37]} 39. Ra5 {[%clk 00:00:43]} {[%emt 00:00:21]} Qb1+ {[%clk 00:00:51]}
{[%emt 00:00:27]} 1/2-1/2

[Event "European Women's Chess Championship (1-48)"]
[Site "Batumi, Georgia"]
[Date "2026.05.25"]
[Round "1.48"]
[White "Kobak, Polina"]
[Black "Jarocka, Liwia"]
[Result "1-0"]
[TimeControl "90min/ 40moves+ 30min+ 30-sec increment from move 1"]
[WhiteTitle "-"]
[BlackTitle "-"]
[WhiteFideId "24269727"]
[BlackFideId "21807558"]
[WhiteElo "1986"]
[BlackElo "2288"]

1. d4 {[%clk 01:30:57]} {[%emt 00:00:02]} e6 {[%clk 01:30:46]} {[%emt
00:00:14]} 2. c4 {[%clk 01:31:13]} {[%emt 00:00:13]} b6 {[%clk 01:31:10]}
{[%emt 00:00:07]} 3. Nc3 {[%clk 01:26:00]} {[%emt 00:05:43]} Bb7 {[%clk
01:31:21]} {[%emt 00:00:19]} 4. a3 {[%clk 01:24:27]} {[%emt 00:02:04]} Nf6
{[%clk 01:31:12]} {[%emt 00:00:38]} 5. Nf3 {[%clk 01:18:35]} {[%emt 00:06:22]}
d5 {[%clk 01:26:05]} {[%emt 00:05:38]} 6. cxd5 {[%clk 01:18:58]} {[%emt
00:00:07]} Nxd5 {[%clk 01:26:09]} {[%emt 00:00:25]} 7. e3 {[%clk 01:14:31]}
{[%emt 00:04:58]} Nd7 {[%clk 01:22:39]} {[%emt 00:03:59]} 8. Bd3 {[%clk
01:12:00]} {[%emt 00:03:01]} c5 {[%clk 01:12:03]} {[%emt 00:11:06]} 9. O-O
{[%clk 01:04:53]} {[%emt 00:07:38]} cxd4 {[%clk 01:11:01]} {[%emt 00:01:32]} 10.
Nxd5 {[%clk 01:02:33]} {[%emt 00:02:50]} Bxd5 {[%clk 01:11:24]} {[%emt
00:00:06]} 11. Nxd4 {[%clk 01:01:50]} {[%emt 00:01:13]} Be7 {[%clk 01:04:29]}
{[%emt 00:07:25]} 12. Qe2 {[%clk 00:52:39]} {[%emt 00:09:41]} O-O {[%clk
01:03:34]} {[%emt 00:01:52]} 13. e4 {[%clk 00:48:44]} {[%emt 00:03:58]} Bb7
{[%clk 01:03:54]} {[%emt 00:00:10]} 14. Rd1 {[%clk 00:48:33]} {[%emt 00:00:41]}
Ne5 {[%clk 00:54:58]} {[%emt 00:09:26]} 15. Bb5 {[%clk 00:37:15]} {[%emt
00:11:49]} Qc8 {[%clk 00:44:06]} {[%emt 00:11:21]} 16. Bf4 {[%clk 00:29:48]}
{[%emt 00:07:57]} Ng6 {[%clk 00:44:09]} {[%emt 00:00:28]} 17. Bg3 {[%clk
00:27:34]} {[%emt 00:02:43]} Bg5 {[%clk 00:39:41]} {[%emt 00:04:58]} 18. h4
{[%clk 00:16:06]} {[%emt 00:11:59]} Bh6 {[%clk 00:38:10]} {[%emt 00:02:00]} 19.
h5 {[%clk 00:15:42]} {[%emt 00:00:54]} Nf4 {[%clk 00:35:22]} {[%emt 00:03:18]}
20. Qg4 {[%clk 00:10:31]} {[%emt 00:05:42]} f5 {[%clk 00:34:31]} {[%emt
00:01:21]} 21. Qh4 {[%clk 00:10:38]} {[%emt 00:00:22]} fxe4 {[%clk 00:29:47]}
{[%emt 00:05:14]} 22. Rac1 {[%clk 00:10:33]} {[%emt 00:00:35]} Nh3+ {[%clk
00:23:29]} {[%emt 00:06:49]} 23. Qxh3 {[%clk 00:10:26]} {[%emt 00:00:37]} Bxc1
{[%clk 00:23:54]} {[%emt 00:00:05]} 24. Nxe6 {[%clk 00:07:39]} {[%emt
00:03:16]} Bxb2 {[%clk 00:12:28]} {[%emt 00:11:57]} 25. Rd7 {[%clk 00:02:39]}
{[%emt 00:05:30]} e3 {[%clk 00:12:03]} {[%emt 00:00:55]} 26. Nxf8 {[%clk
00:01:31]} {[%emt 00:01:37]} Qc1+ {[%clk 00:05:32]} {[%emt 00:07:01]} 27. Kh2
{[%clk 00:01:40]} {[%emt 00:00:21]} exf2 {[%clk 00:05:48]} {[%emt 00:00:14]} 28.
Bxf2 {[%clk 00:01:11]} {[%emt 00:00:59]} Rxf8 {[%clk 00:05:14]} {[%emt
00:01:05]} 29. Rxb7 {[%clk 00:00:56]} {[%emt 00:00:45]} Be5+ {[%clk 00:03:22]}
{[%emt 00:02:21]} 30. Bg3 {[%clk 00:01:20]} {[%emt 00:00:06]} Bd4 {[%clk
00:03:45]} {[%emt 00:00:08]} 31. Qe6+ {[%clk 00:01:35]} {[%emt 00:00:15]} Kh8
{[%clk 00:04:14]} 32. Rf7 {[%clk 00:00:40]} {[%emt 00:01:26]} Rd8 {[%clk
00:03:05]} {[%emt 00:01:38]} 33. Rf1 {[%clk 00:00:53]} {[%emt 00:00:17]} Qc5
{[%clk 00:03:02]} {[%emt 00:00:33]} 34. Qf5 {[%clk 00:00:53]} {[%emt 00:00:30]}
Qxa3 {[%clk 00:02:55]} {[%emt 00:00:37]} 35. Bd3 {[%clk 00:00:58]} {[%emt
00:00:25]} g6 {[%clk 00:02:54]} {[%emt 00:00:31]} 36. Be5+ {[%clk 00:01:15]}
{[%emt 00:00:13]} Bxe5+ {[%clk 00:03:10]} {[%emt 00:00:14]} 37. Qxe5+ {[%clk
00:01:40]} {[%emt 00:00:05]} Kg8 {[%clk 00:03:38]} {[%emt 00:00:02]} 38. Bc4+
{[%clk 00:02:03]} {[%emt 00:00:07]} 1-0

[ePGN "0.1;DGT LiveChess/2.2.10"]

[Event "European Women's Chess Championship (49-84)"]
[Site "Batumi, Georgia"]
[Date "2026.05.25"]
[Round "1.49"]
[White "Krasteva, Beloslava"]
[Black "Muradyan, Anahit"]
[Result "1-0"]
[TimeControl "90min /40moves + 30min + 30-sec increment from move 1"]
[WhiteTitle "-"]
[BlackTitle "-"]
[WhiteFideId "2922029"]
[BlackFideId "13314807"]
[WhiteElo "2285"]
[BlackElo "1977"]

1. d4 {[%clk 01:30:56]} {[%emt 00:00:03]} Nf6 {[%clk 01:30:48]} {[%emt
00:00:12]} 2. c4 {[%clk 01:31:13]} {[%emt 00:00:13]} e6 {[%clk 01:31:05]}
{[%emt 00:00:14]} 3. Nc3 {[%clk 01:31:08]} {[%emt 00:00:34]} d5 {[%clk
01:31:06]} {[%emt 00:00:30]} 4. cxd5 {[%clk 01:31:00]} {[%emt 00:00:38]} Nxd5
{[%clk 01:31:31]} {[%emt 00:00:05]} 5. e4 {[%clk 01:30:18]} {[%emt 00:01:12]}
Nxc3 {[%clk 01:31:23]} {[%emt 00:00:38]} 6. bxc3 {[%clk 01:30:42]} {[%emt
00:00:05]} c5 {[%clk 01:31:40]} {[%emt 00:00:13]} 7. Rb1 {[%clk 01:30:39]}
{[%emt 00:00:34]} Nc6 {[%clk 01:29:35]} {[%emt 00:02:34]} 8. d5 {[%clk
01:23:34]} {[%emt 00:07:35]} exd5 {[%clk 01:21:02]} {[%emt 00:09:03]} 9. exd5
{[%clk 01:23:46]} {[%emt 00:00:18]} Na5 {[%clk 01:18:36]} {[%emt 00:02:57]} 10.
Bb5+ {[%clk 01:14:27]} {[%emt 00:09:48]} Bd7 {[%clk 01:16:32]} {[%emt
00:02:34]} 11. Qe2+ {[%clk 01:14:02]} {[%emt 00:00:54]} Qe7 {[%clk 01:11:17]}
{[%emt 00:05:46]} 12. Bxd7+ {[%clk 01:14:13]} {[%emt 00:00:19]} Kxd7 {[%clk
01:11:40]} {[%emt 00:00:08]} 13. Be3 {[%clk 01:14:33]} {[%emt 00:00:10]} b6
{[%clk 01:01:50]} {[%emt 00:10:19]} 14. Qg4+ {[%clk 01:12:39]} {[%emt
00:02:23]} Ke8 {[%clk 00:50:01]} {[%emt 00:12:20]} 15. Nf3 {[%clk 01:03:13]}
{[%emt 00:09:56]} Rd8 {[%clk 00:38:59]} {[%emt 00:11:32]} 16. O-O {[%clk
00:59:06]} {[%emt 00:04:37]} h5 {[%clk 00:25:06]} {[%emt 00:14:24]} 17. Qf4
{[%clk 00:35:34]} {[%emt 00:24:01]} f6 {[%clk 00:15:42]} {[%emt 00:09:54]} 18.
Rbd1 {[%clk 00:29:56]} {[%emt 00:06:08]} Qd6 {[%clk 00:09:49]} {[%emt
00:06:23]} 19. Qe4+ {[%clk 00:28:21]} {[%emt 00:02:04]} Kf7 {[%clk 00:09:53]}
{[%emt 00:00:26]} 20. Nh4 {[%clk 00:27:19]} {[%emt 00:01:32]} Qe5 {[%clk
00:04:05]} {[%emt 00:06:18]} 21. Qc2 {[%clk 00:22:38]} {[%emt 00:05:11]} Bd6
{[%clk 00:01:12]} {[%emt 00:03:24]} 22. g3 {[%clk 00:20:13]} {[%emt 00:02:56]}
Qe8 {[%clk 00:01:02]} {[%emt 00:00:39]} 23. Rfe1 {[%clk 00:19:10]} {[%emt
00:01:33]} Qd7 {[%clk 00:00:54]} {[%emt 00:00:39]} 24. Qg6+ {[%clk 00:18:09]}
{[%emt 00:01:30]} Kf8 {[%clk 00:01:16]} {[%emt 00:00:09]} 25. Bc1 {[%clk
00:14:58]} {[%emt 00:03:39]} Qf7 {[%clk 00:00:36]} {[%emt 00:01:11]} 26. Qf5
{[%clk 00:09:19]} {[%emt 00:06:08]} Kg8 {[%clk 00:00:58]} {[%emt 00:00:09]} 27.
Ng6 {[%clk 00:09:19]} {[%emt 00:00:30]} Rh7 {[%clk 00:01:23]} {[%emt 00:00:05]}
28. Re6 {[%clk 00:07:08]} {[%emt 00:02:40]} Nc4 {[%clk 00:01:19]} {[%emt
00:00:34]} 29. Rde1 {[%clk 00:07:02]} {[%emt 00:00:36]} Be5 {[%clk 00:00:39]}
{[%emt 00:01:11]} 30. Ne7+ {[%clk 00:05:28]} {[%emt 00:02:03]} Kh8 {[%clk
00:01:01]} {[%emt 00:00:09]} 31. R1xe5 {[%clk 00:04:52]} {[%emt 00:01:07]} Nxe5
{[%clk 00:01:11]} {[%emt 00:00:19]} 32. Rxe5 {[%clk 00:05:17]} {[%emt
00:00:05]} g6 {[%clk 00:00:32]} {[%emt 00:01:09]} 33. Nxg6+ {[%clk 00:05:17]}
{[%emt 00:00:30]} Kg8 {[%clk 00:01:01]} {[%emt 00:00:01]} 34. Re6 {[%clk
00:04:18]} {[%emt 00:01:29]} Rg7 {[%clk 00:00:36]} {[%emt 00:00:55]} 35. Rxf6
{[%clk 00:03:45]} {[%emt 00:01:03]} Qd7 {[%clk 00:00:31]} {[%emt 00:00:36]} 36.
Qxh5 {[%clk 00:02:01]} {[%emt 00:02:14]} Rh7 {[%clk 00:00:54]} {[%emt
00:00:06]} 37. Qf3 {[%clk 00:01:28]} {[%emt 00:01:03]} Rg7 {[%clk 00:00:33]}
{[%emt 00:00:51]} 38. Ne5 {[%clk 00:01:12]} {[%emt 00:00:46]} Qe7 {[%clk
00:00:37]} {[%emt 00:00:26]} 39. Re6 {[%clk 00:01:14]} {[%emt 00:00:28]} Qb7
{[%clk 00:00:32]} {[%emt 00:00:35]} 40. Bh6 {[%clk 00:01:30]} {[%emt 00:00:14]}
Re7 {[%clk 00:00:31]} {[%emt 00:00:32]} 41. Qg4+ {[%clk 00:01:37]} {[%emt
00:00:22]} Kh7 {[%clk 00:00:54]} {[%emt 00:00:06]} 42. Qg6+ {[%clk 00:01:49]}
{[%emt 00:00:18]} 1-0

[Event "European Women's Chess Championship (49-84)"]
[Site "Batumi, Georgia"]
[Date "2026.05.25"]
[Round "1.50"]
[White "Radikovic, Anamarija"]
[Black "Pogorelskikh, Sofia"]
[Result "0-1"]
[TimeControl "90min /40moves + 30min + 30-sec increment from move 1"]
[WhiteTitle "-"]
[BlackTitle "-"]
[WhiteFideId "14546264"]
[BlackFideId "44164548"]
[WhiteElo "1974"]
[BlackElo "2284"]

1. e4 {[%clk 01:30:57]} {[%emt 00:00:02]} c5 {[%clk 01:30:49]} {[%emt
00:00:11]} 2. Nf3 {[%clk 01:31:22]} {[%emt 00:00:06]} d6 {[%clk 01:30:56]}
{[%emt 00:00:22]} 3. d4 {[%clk 01:31:45]} {[%emt 00:00:08]} cxd4 {[%clk
01:31:14]} {[%emt 00:00:11]} 4. Nxd4 {[%clk 01:32:09]} {[%emt 00:00:06]} Nf6
{[%clk 01:31:31]} {[%emt 00:00:13]} 5. Nc3 {[%clk 01:32:33]} {[%emt 00:00:07]}
a6 {[%clk 01:31:26]} {[%emt 00:00:34]} 6. Bc4 {[%clk 01:32:54]} {[%emt
00:00:10]} e6 {[%clk 01:30:23]} {[%emt 00:01:32]} 7. Be3 {[%clk 01:32:45]}
{[%emt 00:00:38]} Nbd7 {[%clk 01:27:50]} {[%emt 00:03:03]} 8. O-O {[%clk
01:31:55]} {[%emt 00:01:21]} Nc5 {[%clk 01:26:36]} {[%emt 00:01:44]} 9. f3
{[%clk 01:26:04]} {[%emt 00:06:22]} b5 {[%clk 01:16:13]} {[%emt 00:10:53]} 10.
Bb3 {[%clk 01:25:43]} {[%emt 00:00:51]} Qc7 {[%clk 01:14:12]} {[%emt 00:02:30]}
11. a3 {[%clk 01:21:12]} {[%emt 00:05:02]} Be7 {[%clk 01:00:45]} {[%emt
00:13:56]} 12. Ba2 {[%clk 01:13:58]} {[%emt 00:07:45]} O-O {[%clk 01:00:07]}
{[%emt 00:01:07]} 13. Qe1 {[%clk 01:13:50]} {[%emt 00:00:39]} Bd7 {[%clk
00:53:01]} {[%emt 00:07:35]} 14. Qg3 {[%clk 00:59:12]} {[%emt 00:15:08]} Rfc8
{[%clk 00:46:29]} {[%emt 00:07:01]} 15. Rad1 {[%clk 00:42:49]} {[%emt
00:16:54]} Rab8 {[%clk 00:36:12]} {[%emt 00:10:46]} 16. b4 {[%clk 00:23:09]}
{[%emt 00:20:11]} Na4 {[%clk 00:29:30]} {[%emt 00:07:11]} 17. Nxa4 {[%clk
00:22:14]} {[%emt 00:01:26]} bxa4 {[%clk 00:29:26]} {[%emt 00:00:34]} 18. c4
{[%clk 00:20:39]} {[%emt 00:02:06]} e5 {[%clk 00:27:14]} {[%emt 00:02:41]} 19.
Nf5 {[%clk 00:19:49]} {[%emt 00:01:21]} Bxf5 {[%clk 00:27:30]} {[%emt
00:00:13]} 20. exf5 {[%clk 00:20:13]} {[%emt 00:00:07]} a5 {[%clk 00:26:17]}
{[%emt 00:01:42]} 21. Bh6 {[%clk 00:16:53]} {[%emt 00:03:50]} Nh5 {[%clk
00:20:05]} {[%emt 00:06:42]} 22. Qg4 {[%clk 00:17:17]} {[%emt 00:00:07]} axb4
{[%clk 00:19:01]} {[%emt 00:01:33]} 23. axb4 {[%clk 00:17:40]} {[%emt
00:00:08]} Rxb4 {[%clk 00:14:34]} {[%emt 00:04:57]} 24. Qxh5 {[%clk 00:17:41]}
{[%emt 00:00:29]} gxh6 {[%clk 00:14:48]} {[%emt 00:00:15]} 25. Qxh6 {[%clk
00:15:08]} {[%emt 00:03:04]} Qd8 {[%clk 00:10:45]} {[%emt 00:04:33]} 26. Bb1
{[%clk 00:01:13]} {[%emt 00:14:24]} Bg5 {[%clk 00:07:15]} {[%emt 00:03:59]} 27.
Qh5 {[%clk 00:01:33]} {[%emt 00:00:11]} Rcxc4 {[%clk 00:06:23]} 28. Be4 {[%clk
00:01:24]} {[%emt 00:02:02]} Qf6 {[%clk 00:05:43]} {[%emt 00:01:10]} 29. Kh1
{[%clk 00:01:23]} {[%emt 00:00:32]} Rd4 {[%clk 00:05:17]} {[%emt 00:02:43]} 30.
Bd5 {[%clk 00:01:16]} {[%emt 00:01:23]} Rxd1 {[%clk 00:04:38]} {[%emt
00:03:08]} 31. Rxd1 {[%clk 00:01:41]} {[%emt 00:00:05]} Rh4 {[%clk 00:04:55]}
{[%emt 00:00:12]} 32. Bxf7+ {[%clk 00:01:33]} {[%emt 00:00:39]} Kg7 {[%clk
00:05:07]} {[%emt 00:00:17]} 0-1